fUST/lending_fUST_20260115
["ID","MTS","AMOUNT","RATE_DAILY","PERIOD"]
[401984912,1768437041982,-418.51498658,0.00015553,2]
[401984913,1768437041991,-155.33,0.0001561,2]
[401984914,1768437042000,-151.0,0.000158,2]
[401984915,1768437042009,-823.0,0.00015826,2]
[401984916,1768437042019,-1500.0,0.00015864,2]
[401984917,1768437042028,-2500.0,0.0001589,2]
[401984918,1768437042037,-563.27896724,0.0001589,2]
[401984919,1768437042047,-559.4878042,0.0001589,2]
[401984920,1768437042056,-1211.66599686,0.0001589,2]
[401984921,1768437042065,-2500.0,0.0001589,2]
[401984922,1768437042074,-2500.0,0.0001589,2]
[401984923,1768437042084,-2500.0,0.0001589,2]
[401984924,1768437042094,-1000.0,0.00015922,2]
[401984925,1768437042104,-215.88592206,0.00016,2]
[401984926,1768437042113,-3000.0,0.00016012,2]
[401984927,1768437042123,-413.29712103,0.00016012,2]
[401984928,1768437042133,-3000.0,0.00016012,2]
[401984929,1768437042142,-171.14126243,0.00016012,2]
[401984930,1768437042152,-1692.29139729,0.00016012,2]
[401984931,1768437042162,-3000.0,0.00016012,2]
[401984932,1768437042172,-3000.0,0.00016012,2]
[401984933,1768437042182,-3000.0,0.00016012,2]
[401984934,1768437042192,-3000.0,0.00016012,2]
[401984935,1768437042201,-2416.13825137,0.00016012,2]
[401984936,1768437042210,-3000.0,0.00016012,2]
[401984937,1768437042220,-1600.0,0.00016164,2]
[401984938,1768437042229,-1800.0,0.00016412,2]
[401984939,1768437042239,-500.0,0.00016438,2]
[401984940,1768437042248,-500.0,0.00016438,2]
[401984941,1768437042257,-500.0,0.00016438,2]
[401984942,1768437042269,-500.0,0.00016438,2]
[401984943,1768437042281,-565.69306315,0.00016438,2]
[401984944,1768437042291,-500.0,0.00016438,2]
[401984945,1768437042300,-595.30780858,0.00016438,2]
[401984946,1768437042309,-200.0,0.00016438,2]
[401984947,1768437042319,-164.26686219,0.00016438,2]
[401984948,1768437042328,-1044.67516775,0.00016438,2]
[401984949,1768437042337,-3000.0,0.00016438,2]
[401984950,1768437042348,-3000.0,0.00016438,2]
[401984951,1768437042357,-3000.0,0.00016438,2]
[401984954,1768437042366,-260.29560408,0.00016438,2]
[401984956,1768437042375,-200.0,0.00016473,2]
[401984957,1768437042384,-3500.0,0.0001656,2]
[401984958,1768437042393,-3500.0,0.0001656,2]
[401984959,1768437042402,-3500.0,0.0001656,2]
[401984960,1768437042411,-3500.0,0.0001656,2]
[401984961,1768437042420,-3500.0,0.0001656,2]
[401984962,1768437042429,-3500.0,0.0001656,2]
[401984963,1768437042438,-3500.0,0.0001656,2]
[401984964,1768437042447,-151.0,0.000166,2]
[401984965,1768437042456,-158.87399376,0.00016863,9]
[401984966,1768437042466,-2100.0,0.0001696,2]
[401984967,1768437042475,-270.0,0.00016986,2]
[401984968,1768437042485,-2087.94374426,0.00016986,2]
[401984969,1768437042495,-3500.0,0.00016986,2]
[401984970,1768437042505,-3500.0,0.00016986,2]
[401984971,1768437042515,-95477.61285994,0.00017,2]
[401984972,1768437042524,-151.0,0.000171,2]
[401984973,1768437042533,-2417.48910491,0.00017108,2]
[401984974,1768437042543,-2892.75982988,0.00017108,2]
[401984975,1768437042553,-4000.0,0.00017108,2]
[401984976,1768437042562,-4000.0,0.00017108,2]
[401984977,1768437042571,-4000.0,0.00017108,2]
[401984979,1768437042580,-4000.0,0.00017108,2]
[401984981,1768437042590,-4000.0,0.00017108,2]
[401984982,1768437042599,-2400.0,0.0001726,2]
[401984983,1768437042608,-1152.0,0.00017374,2]
[401984984,1768437042617,-5000.0,0.00017412,2]
[401984985,1768437042626,-8489.68891394,0.00017479,2]
[401984986,1768437042636,-2400.0,0.00017508,2]
[401984987,1768437042645,-1000.0,0.00017514,2]
[401984988,1768437042654,-244.0,0.00017514,2]
[401984989,1768437042663,-174.48080933,0.00017534,2]
[401984990,1768437042673,-400.0,0.00017534,2]
[401984992,1768437042687,-4000.0,0.00017534,2]
[401984993,1768437042696,-4000.0,0.00017534,2]
[401984994,1768437042705,-473.90667598,0.00017553,2]
[401984995,1768437042713,-2137.48177052,0.000176,2]
[401984996,1768437042723,-2199.34641428,0.00017656,2]
[401984997,1768437042736,-4500.0,0.00017656,2]
[401984998,1768437042745,-4500.0,0.00017656,2]
[401984999,1768437042756,-4500.0,0.00017656,2]
[401985000,1768437042765,-4500.0,0.00017656,2]
[401985001,1768437042774,-400.30202268,0.00017842,2]
[401985002,1768437042784,-7906.2534018,0.00017982,2]
[401985003,1768437042793,-150512.98381193,0.00018,2]
[401985004,1768437042803,-42910.83449574,0.00018,5]
[401985005,1768437042813,-2700.0,0.00018056,2]
[401985006,1768437042823,-151.0,0.00018082,2]
[401985007,1768437042832,-151.0,0.00018082,2]
[401985008,1768437042842,-228.378337,0.00018082,2]
[401985009,1768437042851,-228.378337,0.00018082,2]
[401985010,1768437042860,-228.378337,0.00018082,2]
[401985011,1768437042870,-228.378337,0.00018082,2]
[401985012,1768437042879,-4500.0,0.00018082,2]
[401985013,1768437042889,-4500.0,0.00018082,2]
[401985014,1768437042899,-5000.0,0.00018204,2]
[401985015,1768437042909,-5000.0,0.00018204,2]
[401985016,1768437042919,-5000.0,0.00018204,2]
[401985017,1768437042928,-5000.0,0.00018204,2]
[401985018,1768437042938,-2353.6429241,0.00018331,2]
[401985019,1768437042947,-3200.0,0.00018356,2]
[401985020,1768437042958,-151.0,0.000185,2]
[401985021,1768437042967,-1041.66666667,0.00018551,2]
[401985022,1768437042981,-163.0,0.000186,2]
[401985023,1768437042994,-163.0,0.000186,2]
[401985026,1768437043004,-3000.0,0.00018604,2]
[401985028,1768437043013,-600.0,0.0001863,2]
[401985029,1768437043023,-5000.0,0.0001863,2]
[401985030,1768437043032,-5000.0,0.0001863,2]
[401985031,1768437043042,-4088.14205975,0.00018752,2]
[401985032,1768437043052,-5500.0,0.00018752,2]
[401985033,1768437043062,-5500.0,0.00018752,2]
[401985034,1768437043071,-5500.0,0.00018752,2]
[401985035,1768437043080,-2777.6351,0.00018863,2]
[401985036,1768437043090,-163.0,0.000189,2]
[401985037,1768437043099,-163.0,0.000189,2]
[401985039,1768437043108,-163.0,0.000189,2]
[401985041,1768437043118,-164.0,0.000189,2]
[401985042,1768437043127,-164.0,0.000189,2]
[401985043,1768437043136,-303.10001603,0.000189,2]
[401985044,1768437043146,-231483.25817476,0.000189,5]
[401985045,1768437043155,-17969.48957745,0.00019,2]
[401985046,1768437043164,-2603.49,0.00019,2]
[401985047,1768437043173,-1613.0,0.00019073,2]
[401985048,1768437043182,-303.10001603,0.00019089,2]
[401985049,1768437043191,-3156.20051056,0.00019152,2]
[401985050,1768437043201,-3566.013892,0.00019152,7]
[401985051,1768437043211,-6965.080609,0.00019178,7]
[401985052,1768437043220,-5500.0,0.00019178,2]
[401985053,1768437043230,-5500.0,0.00019178,2]
[401985054,1768437043240,-167.77,0.000192,2]
[401985055,1768437043249,-500.99801519,0.00019205,5]
[401985056,1768437043259,-1000.0,0.00019265,2]
[401985057,1768437043268,-492.0,0.00019265,2]
[401985058,1768437043278,-303.10001603,0.00019278,2]
[401985059,1768437043287,-655.0,0.00019295,2]
[401985060,1768437043296,-196.5,0.000193,2]
[401985061,1768437043305,-223.89,0.000193,2]
[401985062,1768437043315,-3915.7,0.000193,2]
[401985063,1768437043324,-26956.66,0.000193,2]
[401985064,1768437043334,-3540.44472477,0.000193,2]
[401985065,1768437043345,-6000.0,0.000193,2]
[401985066,1768437043354,-6000.0,0.000193,2]
[401985067,1768437043363,-151.0,0.00019452,2]
[401985068,1768437043372,-151.0,0.00019452,2]
[401985069,1768437043382,-228.378337,0.00019452,2]
[401985070,1768437043391,-228.378337,0.00019452,2]
[401985071,1768437043401,-228.378337,0.00019452,2]
[401985072,1768437043409,-228.378337,0.00019452,2]
[401985073,1768437043419,-307.61092211,0.00019452,2]
[401985074,1768437043428,-148346.177911,0.00019452,7]
[401985075,1768437043437,-303.10001603,0.00019467,2]
[401985077,1768437043446,-529.29836539,0.00019553,2]
[401985078,1768437043455,-7906.25340176,0.00019641,2]
[401985079,1768437043463,-303.10001603,0.00019656,2]
[401985080,1768437043472,-800.0,0.00019726,2]
[401985081,1768437043483,-250.0,0.00019726,2]
[401985082,1768437043492,-14858.391217,0.00019726,7]
[401985083,1768437043502,-6000.0,0.00019726,2]
[401985084,1768437043511,-250.0,0.00019726,2]
[401985085,1768437043521,-6000.0,0.00019726,2]
[401985086,1768437043530,-151.0,0.000198,2]
[401985087,1768437043539,-164.0,0.000198,2]
[401985088,1768437043548,-164.0,0.000198,2]
[401985089,1768437043557,-164.0,0.000198,3]
[401985090,1768437043567,-164.0,0.000198,3]
[401985091,1768437043576,-454.65002399,0.00019845,4]
[401985092,1768437043587,-4636.88672608,0.00019848,2]
[401985093,1768437043596,-6500.0,0.00019848,2]
[401985094,1768437043606,-6500.0,0.00019848,2]
[401985095,1768437043615,-500.0,0.0002,2]
[401985096,1768437043624,-500.0,0.0002,2]
[401985097,1768437043634,-9661.0,0.0002,2]
[401985098,1768437043643,-151.55000802,0.0002,2]
[401985099,1768437043652,-668.88471487,0.0002,2]
[401985100,1768437043661,-14703.49659754,0.0002,2]
[401985101,1768437043670,-371.66132516,0.0002,2]
[401985102,1768437043679,-6414.05067743,0.0002,2]
[401985103,1768437043691,-804.32909815,0.0002,2]
[401985104,1768437043700,-163524.2208646,0.0002,7]
[401985105,1768437043709,-74737.25492349,0.0002,2]
[401985106,1768437043718,-809.68655087,0.0002,2]
[401985107,1768437043727,-75199.65731769,0.0002,7]
[401985108,1768437043736,-202.7514447,0.0002,2]
[401985110,1768437043745,-504.32904356,0.0002,2]
[401985113,1768437043754,-673.07189375,0.0002,10]
[401985116,1768437043763,-17587.92944107,0.0002,2]
[401985119,1768437043772,-503.71435101,0.0002013,2]
[401985122,1768437043781,-200.91058964,0.00020274,2]
[401985125,1768437043790,-4402.72600724,0.00020274,2]
[401985128,1768437043800,-350.0,0.00020274,2]
[401985130,1768437043809,-6500.0,0.00020274,2]
[401985131,1768437043818,-59433.564868,0.00020279,7]
[401985133,1768437043828,-712.540216,0.00020279,7]
[401985134,1768437043837,-8915.03473,0.00020279,7]
[401985135,1768437043845,-655.0,0.00020281,2]
[401985136,1768437043854,-14264.055568,0.00020337,7]
[401985137,1768437043862,-8489.68891394,0.00020337,2]
[401985138,1768437043871,-1198.591214,0.00020337,2]
[401985139,1768437043880,-1198.591214,0.00020337,2]
[401985140,1768437043889,-1198.591214,0.00020337,2]
[401985141,1768437043898,-1198.591214,0.00020337,2]
[401985142,1768437043907,-151.0,0.00020337,2]
[401985143,1768437043916,-151.0,0.00020337,2]
[401985144,1768437043925,-228.378337,0.00020337,2]
[401985145,1768437043934,-228.378337,0.00020337,2]
[401985146,1768437043945,-228.378337,0.00020337,2]
[401985147,1768437043954,-228.378337,0.00020337,2]
[401985148,1768437043963,-2573.24025849,0.00020396,2]
[401985149,1768437043972,-5183.87260271,0.00020396,2]
[401985150,1768437043982,-1781.35054,0.00020423,7]
[401985151,1768437043991,-151.0,0.00020423,2]
[401985152,1768437044002,-151.0,0.00020423,2]
[401985153,1768437044011,-151.0,0.00020423,2]
[401985154,1768437044021,-151.0,0.00020423,2]
[401985155,1768437044030,-636.790212,0.00020423,2]
[401985156,1768437044039,-636.790212,0.00020423,2]
[401985157,1768437044048,-636.790212,0.00020423,2]
[401985158,1768437044057,-636.790212,0.00020423,2]
[401985159,1768437044066,-4453.376349,0.0002056,7]
[401985160,1768437044076,-1389.51235473,0.0002061,2]
[401985161,1768437044086,-300.0,0.00020612,2]
[401985162,1768437044096,-772.83112101,0.00020726,13]
[401985163,1768437044106,-159.42428313,0.00020806,5]
[401985164,1768437044116,-157.06656927,0.00020806,5]
[401985165,1768437044126,-1000.0,0.00020822,2]
[401985166,1768437044138,-450.0,0.00020822,2]
[401985167,1768437044148,-7000.0,0.00020822,2]
[401985168,1768437044158,-256.51440562,0.000209,2]
[401985169,1768437044168,-2258.0,0.00020939,2]
[401985170,1768437044177,-277.38884084,0.00021,2]
[401985171,1768437044187,-42355.45436533,0.00021,2]
[401985172,1768437044197,-35660.13892,0.00021025,7]
[401985173,1768437044206,-402.28551192,0.0002108,2]
[401985174,1768437044216,-1000.0,0.00021192,10]
[401985175,1768437044226,-791.0,0.00021192,10]
[401985176,1768437044235,-151.0,0.000212,3]
[401985177,1768437044244,-655.0,0.00021266,2]
[401985178,1768437044253,-155.33,0.00021287,2]
[401985179,1768437044263,-26956.66,0.000213,2]
[401985180,1768437044273,-151.0,0.000213,2]
[401985181,1768437044282,-151.0,0.000213,2]
[401985182,1768437044292,-7906.25340176,0.00021301,2]
[401985183,1768437044302,-550.0,0.0002137,2]
[401985184,1768437044312,-7500.0,0.0002137,2]
[401985185,1768437044321,-159.42428312,0.0002139,5]
[401985186,1768437044331,-157.06656927,0.0002139,5]
[401985187,1768437044341,-584.69005479,0.00021553,2]
[401985188,1768437044350,-2353.6429241,0.00021566,2]
[401985189,1768437044360,-772.83112101,0.00021604,14]
[401985190,1768437044369,-163.0,0.000219,4]
[401985191,1768437044381,-163.0,0.000219,4]
[401985192,1768437044390,-163.0,0.000219,5]
[401985193,1768437044399,-163.0,0.000219,3]
[401985194,1768437044408,-223.89,0.000219,2]
[401985195,1768437044417,-3915.7,0.000219,2]
[401985196,1768437044427,-196.5,0.000219,2]
[401985197,1768437044435,-164.0,0.000219,4]
[401985198,1768437044444,-164.0,0.000219,4]
[401985199,1768437044454,-164.0,0.000219,5]
[401985200,1768437044463,-158.48375877,0.000219,5]
[401985201,1768437044472,-222.949825,0.00021918,2]
[401985202,1768437044483,-179.25521,0.00021918,2]
[401985203,1768437044492,-179.25521,0.00021918,2]
[401985204,1768437044501,-179.25521,0.00021918,2]
[401985205,1768437044510,-179.25521,0.00021918,2]
[401985206,1768437044519,-151.0,0.00021918,2]
[401985207,1768437044527,-151.0,0.00021918,2]
[401985208,1768437044536,-151.0,0.00021918,2]
[401985209,1768437044546,-202.608611,0.00021918,2]
[401985210,1768437044555,-202.608611,0.00021918,2]
[401985211,1768437044564,-202.608611,0.00021918,2]
[401985212,1768437044572,-202.608611,0.00021918,2]
[401985213,1768437044582,-153.99893,0.00021918,2]
[401985214,1768437044591,-151.0,0.00021918,2]
[401985215,1768437044600,-151.0,0.00021918,2]
[401985216,1768437044609,-193.299755,0.00021918,2]
[401985217,1768437044619,-193.299755,0.00021918,2]
[401985218,1768437044628,-193.299755,0.00021918,2]
[401985219,1768437044637,-193.299755,0.00021918,2]
[401985220,1768437044647,-153.277578,0.00021918,2]
[401985221,1768437044656,-153.277578,0.00021918,2]
[401985222,1768437044665,-153.277578,0.00021918,2]
[401985223,1768437044675,-153.277578,0.00021918,2]
[401985224,1768437044687,-151.0,0.00021918,2]
[401985225,1768437044696,-151.0,0.00021918,2]
[401985226,1768437044705,-151.0,0.00021918,2]
[401985227,1768437044714,-151.0,0.00021918,2]
[401985228,1768437044723,-728.69418,0.00021918,2]
[401985229,1768437044734,-728.69418,0.00021918,2]
[401985230,1768437044743,-728.69418,0.00021918,2]
[401985231,1768437044752,-728.69418,0.00021918,2]
[401985232,1768437044763,-151.0,0.00021918,2]
[401985233,1768437044772,-151.0,0.00021918,2]
[401985234,1768437044781,-165.324474,0.00021918,2]
[401985235,1768437044791,-165.324474,0.00021918,2]
[401985236,1768437044800,-151.0,0.00021918,2]
[401985237,1768437044809,-165.324474,0.00021918,2]
[401985238,1768437044819,-165.324474,0.00021918,2]
[401985239,1768437044828,-151.0,0.00021918,2]
[401985240,1768437044838,-151.0,0.00021918,2]
[401985241,1768437044847,-151.0,0.00021918,2]
[401985242,1768437044857,-276.465874,0.00021918,2]
[401985243,1768437044866,-285.638493,0.00021918,2]
[401985244,1768437044875,-151.0,0.00021918,2]
[401985245,1768437044884,-151.0,0.00021918,2]
[401985246,1768437044894,-151.0,0.00021918,2]
[401985247,1768437044903,-151.0,0.00021918,2]
[401985248,1768437044912,-151.0,0.00021918,2]
[401985249,1768437044921,-225.720354,0.00021918,2]
[401985250,1768437044931,-252.547119,0.00021918,2]
[401985251,1768437044940,-225.720354,0.00021918,2]
[401985252,1768437044949,-167.014609,0.00021918,2]
[401985253,1768437044958,-225.720354,0.00021918,2]
[401985254,1768437044967,-225.720354,0.00021918,2]
[401985255,1768437044977,-222.382788,0.00021918,2]
[401985256,1768437044986,-151.0,0.00021918,2]
[401985257,1768437044995,-165.790218,0.00021918,2]
[401985258,1768437045004,-165.790218,0.00021918,2]
[401985259,1768437045014,-165.790218,0.00021918,2]
[401985260,1768437045024,-295.203199,0.00021918,2]
[401985261,1768437045034,-165.790218,0.00021918,2]
[401985262,1768437045043,-295.203199,0.00021918,2]
[401985263,1768437045053,-295.203199,0.00021918,2]
[401985264,1768437045062,-295.203199,0.00021918,2]
[401985265,1768437045072,-151.0,0.00021918,2]
[401985266,1768437045081,-466.331194,0.00021918,2]
[401985267,1768437045091,-466.331194,0.00021918,2]
[401985268,1768437045100,-466.331194,0.00021918,2]
[401985269,1768437045109,-466.331194,0.00021918,2]
[401985270,1768437045119,-208.349086,0.00021918,2]
[401985271,1768437045128,-151.0,0.00021918,2]
[401985272,1768437045137,-151.0,0.00021918,2]
[401985273,1768437045147,-151.0,0.00021918,2]
[401985274,1768437045157,-275.55471384,0.00021918,2]
[401985275,1768437045315,-151.0,0.00021918,2]
[401985276,1768437045327,-151.0,0.00021918,2]
[401985277,1768437045338,-151.0,0.00021918,2]
[401985278,1768437045347,-151.0,0.00021918,2]
[401985279,1768437045356,-151.0,0.00021918,2]
[401985280,1768437045366,-151.0,0.00021918,2]
[401985281,1768437045375,-151.0,0.00021918,2]
[401985282,1768437045384,-151.0,0.00021918,2]
[401985283,1768437045394,-1416.327174,0.00021918,2]
[401985284,1768437045403,-1416.327174,0.00021918,2]
[401985285,1768437045413,-1416.327174,0.00021918,2]
[401985286,1768437045422,-151.0,0.00021918,2]
[401985287,1768437045431,-1416.327174,0.00021918,2]
[401985288,1768437045440,-151.0,0.00021918,2]
[401985289,1768437045450,-240.755518,0.00021918,2]
[401985290,1768437045459,-210.61279,0.00021918,2]
[401985291,1768437045468,-210.61279,0.00021918,2]
[401985292,1768437045478,-210.61279,0.00021918,2]
[401985293,1768437045487,-474.534701,0.00021918,2]
[401985294,1768437045496,-210.61279,0.00021918,2]
[401985295,1768437045506,-474.534701,0.00021918,2]
[401985296,1768437045516,-474.534701,0.00021918,2]
[401985297,1768437045525,-474.534701,0.00021918,2]
[401985298,1768437045534,-225.938304,0.00021918,2]
[401985299,1768437045544,-151.0,0.00021918,2]
[401985300,1768437045553,-151.0,0.00021918,2]
[401985301,1768437045562,-151.0,0.00021918,2]
[401985303,1768437045571,-282.093229,0.00021918,2]
[401985305,1768437045580,-186.701041,0.00021918,2]
[401985306,1768437045590,-151.0,0.00021918,2]
[401985307,1768437045600,-187.824189,0.00021918,2]
[401985308,1768437045609,-151.0,0.00021918,2]
[401985309,1768437045619,-171.590908,0.00021918,2]
[401985310,1768437045628,-151.0,0.00021918,2]
[401985311,1768437045638,-151.0,0.00021918,2]
[401985312,1768437045647,-171.320259,0.00021918,2]
[401985313,1768437045656,-151.0,0.00021918,2]
[401985314,1768437045666,-151.0,0.00021918,2]
[401985315,1768437045675,-231.464097,0.00021918,2]
[401985316,1768437045687,-151.0,0.00021918,2]
[401985317,1768437045696,-285.163634,0.00021918,2]
[401985318,1768437045706,-151.0,0.00021918,2]
[401985319,1768437045717,-151.0,0.00021918,2]
[401985320,1768437045729,-151.0,0.00021918,2]
[401985321,1768437045738,-151.0,0.00021918,2]
[401985322,1768437045747,-151.0,0.00021918,2]
[401985323,1768437045759,-151.0,0.00021918,2]
[401985324,1768437045768,-151.0,0.00021918,2]
[401985325,1768437045778,-1200.0,0.00021918,2]
[401985326,1768437045789,-650.0,0.00021918,2]
[401985327,1768437045799,-8000.0,0.00021918,2]
[401985328,1768437045808,-151.0,0.00021918,2]
[401985329,1768437045818,-151.0,0.00021918,2]
[401985330,1768437045827,-151.0,0.00021918,2]
[401985331,1768437045836,-262.883608,0.00021918,2]
[401985332,1768437045846,-151.0,0.00021918,2]
[401985333,1768437045855,-2143.68,0.00022,7]
[401985334,1768437045864,-1485.839122,0.00022025,30]
[401985335,1768437045873,-2902.11692,0.00022055,30]
[401985336,1768437045883,-158.87399376,0.00022232,29]
[401985337,1768437045892,-655.0,0.00022252,2]
[401985338,1768437045902,-61810.907463,0.0002237,30]
[401985339,1768437045912,-200.0,0.00022466,2]
[401985340,1768437045922,-750.0,0.00022466,2]
[401985341,1768437045932,-864.52541442,0.00022466,2]
[401985342,1768437045941,-772.83112101,0.00022482,16]
[401985343,1768437045950,-151.0,0.000225,5]
[401985344,1768437045960,-262.45964144,0.00022575,7]
[401985345,1768437045969,-6190.99634,0.00022685,30]
[401985346,1768437045978,-155.33,0.00022849,2]
[401985347,1768437045988,-2000.0,0.00022857,7]
[401985348,1768437045997,-7906.25340176,0.0002296,2]
[401985349,1768437046006,-3162.0,0.00022987,2]
[401985350,1768437046015,-1400.0,0.00023014,2]
[401985351,1768437046025,-260.92385342,0.00023014,2]
[401985352,1768437046034,-850.0,0.00023014,2]
[401985354,1768437046043,-900.0,0.00023145,2]
[401985355,1768437046053,-900.0,0.00023169,2]
[401985356,1768437046062,-8489.68891394,0.00023195,2]
[401985357,1768437046072,-1600.0,0.00023205,2]
[401985358,1768437046081,-655.0,0.00023237,2]
[401985359,1768437046091,-900.0,0.00023247,2]
[401985360,1768437046100,-1600.0,0.00023276,2]
[401985361,1768437046110,-800.0,0.00023283,2]
[401985362,1768437046119,-1000.0,0.00023311,10]
[401985363,1768437046128,-1000.0,0.00023311,10]
[401985364,1768437046138,-1600.0,0.00023326,2]
[401985365,1768437046147,-772.83112101,0.00023361,17]
[401985366,1768437046156,-791.34915639,0.00023373,2]
[401985367,1768437046165,-1600.0,0.00023422,2]
[401985368,1768437046176,-182.95072115,0.00023425,2]
[401985369,1768437046185,-900.0,0.00023435,2]
[401985370,1768437046195,-1600.0,0.00023474,2]
[401985371,1768437046206,-151.0,0.00023488,2]
[401985372,1768437046215,-151.0,0.00023488,2]
[401985373,1768437046224,-151.0,0.00023488,2]
[401985374,1768437046234,-151.0,0.00023488,2]
[401985375,1768437046244,-151.0,0.00023488,2]
[401985376,1768437046253,-800.0,0.00023495,2]
[401985377,1768437046263,-26956.66,0.000235,2]
[401985378,1768437046272,-167.77,0.000235,7]
[401985379,1768437046281,-151.0,0.000235,2]
[401985380,1768437046290,-151.0,0.000235,2]
[401985381,1768437046299,-299.922377,0.000235,2]
[401985382,1768437046308,-151.0,0.000235,2]
[401985383,1768437046317,-151.0,0.000235,2]
[401985384,1768437046327,-514.887575,0.000235,2]
[401985385,1768437046336,-514.887575,0.000235,2]
[401985386,1768437046345,-514.887575,0.000235,2]
[401985387,1768437046354,-514.887575,0.000235,2]
[401985388,1768437046363,-800.0,0.00023503,2]
[401985389,1768437046372,-293.85068442,0.00023515,2]
[401985390,1768437046382,-500.0,0.0002352,2]
[401985391,1768437046391,-500.0,0.00023529,2]
[401985392,1768437046400,-1600.0,0.0002353,2]
[401985393,1768437046410,-900.0,0.00023551,2]
[401985394,1768437046420,-640.08174419,0.00023553,2]
[401985395,1768437046429,-500.0,0.00023562,2]
[401985396,1768437046438,-800.0,0.00023582,2]
[401985397,1768437046447,-800.0,0.00023628,2]
[401985398,1768437046457,-900.0,0.00023646,2]
[401985399,1768437046466,-210.0,0.00023671,10]
[401985400,1768437046475,-1600.0,0.00023685,2]
[401985401,1768437046485,-1600.0,0.00023688,2]
[401985402,1768437046494,-4289.84238407,0.000237,14]
[401985403,1768437046503,-500.0,0.00023702,2]
[401985404,1768437046512,-1600.0,0.00023711,2]
[401985405,1768437046521,-2000.0,0.00023714,7]
[401985406,1768437046530,-190.0,0.00023745,2]
[401985407,1768437046539,-1600.0,0.00023746,2]
[401985408,1768437046549,-1600.0,0.0002375,2]
[401985409,1768437046559,-180.24874327,0.0002375,2]
[401985410,1768437046568,-2143.68,0.000238,7]
[401985411,1768437046577,-1600.0,0.00023807,2]
[401985412,1768437046586,-500.0,0.00023807,2]
[401985413,1768437046595,-800.0,0.00023824,2]
[401985414,1768437046605,-500.0,0.00023872,2]
[401985415,1768437046615,-900.0,0.0002388,2]
[401985416,1768437046625,-151.0,0.000239,10]
[401985417,1768437046635,-755.1645066,0.00023945,2]
[401985418,1768437046646,-900.0,0.00023959,2]
[401985419,1768437046657,-800.0,0.00023971,2]
[401985420,1768437046666,-800.0,0.00023976,2]
[401985421,1768437046677,-1041.66666667,0.00024,7]
[401985422,1768437046692,-1931.32974169,0.00024,60]
[401985423,1768437046702,-1736.447596,0.00024,2]
[401985424,1768437046712,-465.90719096,0.00024,2]
[401985425,1768437046723,-500.0,0.00024068,2]
[401985426,1768437046735,-1082.98429516,0.00024072,2]
[401985427,1768437046745,-800.0,0.00024082,2]
[401985428,1768437046754,-900.0,0.00024088,2]
[401985429,1768437046767,-800.0,0.0002409,2]
[401985430,1768437046777,-900.0,0.00024096,2]
[401985431,1768437046787,-900.0,0.00024102,2]
[401985432,1768437046798,-401.4141805,0.0002411,2]
[401985433,1768437046807,-800.0,0.0002411,2]
[401985434,1768437046816,-800.0,0.00024111,2]
[401985435,1768437046826,-500.0,0.00024128,2]
[401985436,1768437046835,-1600.0,0.00024134,2]
[401985437,1768437046845,-477972.68394232,0.00024142,2]
[401985438,1768437046854,-151.0,0.00024142,2]
[401985439,1768437046864,-151.0,0.00024142,2]
[401985440,1768437046873,-151.0,0.00024142,2]
[401985441,1768437046882,-228.378337,0.00024142,2]